bitfinex-derivatives/quotes_SOLF0:USTF0_20241230
["timestamp","ask_amount","ask_price","bid_price","bid_amount"]
[1735524191352,22.30053476,193.4,193.33,2.5914]
[1735524191549,2.5907,193.39,193.33,2.5914]
[1735524191945,22.30053476,193.4,193.3,3.36]
[1735524192152,20.60673476,193.37,193.3,3.36]
[1735524192447,20.60673476,193.37,193.25,5.1377]
[1735524192655,2.5915,193.34,193.29,2.592]
[1735524193051,3.36,193.36,193.27,2.5923]
[1735524193251,1.8346,193.33,193.23,3.36]
[1735524193547,20.60673476,193.28,193.19,5.1377]
[1735524193753,20.60673476,193.28,193.16,1.6781]
[1735524193754,20.60673476,193.28,193.21,2.593]
[1735524193947,20.60673476,193.28,193.18,3.36]
[1735524195349,1.7718,193.3,193.18,3.36]
[1735524196151,1.7718,193.3,193.24,2.5926]
[1735524196353,1.7718,193.3,193.16,1.6781]
[1735524196551,20.60673476,193.28,193.16,1.6781]
[1735524196748,20.60673476,193.28,193.19,2.5933]
[1735524196955,20.60673476,193.28,193.16,5.0381]
[1735524197252,20.60673476,193.31,193.27,2.5923]
[1735524197762,1.7637,193.32,193.21,3.36]
[1735524198050,30.18544628,193.32,193.21,3.36]
[1735524198443,32.77714628,193.32,193.25,2.5925]
[1735524198648,4.3554,193.32,193.25,2.5925]
[1735524199050,1.7637,193.32,193.23,2.5927]
[1735524199254,20.60673476,193.31,193.23,2.5927]
[1735524199552,20.60673476,193.31,193.21,3.36]
[1735524199758,20.60673476,193.31,193.26,2.5923]
[1735524200351,20.60673476,193.31,193.21,3.36]
[1735524200548,20.60673476,193.31,193.16,1.6781]
[1735524200549,20.60673476,193.28,193.16,1.6781]
[1735524200858,2.5927,193.24,193.14,3.36]
[1735524201054,1.7857,193.23,193.13,1.7777]
[1735524202257,20.60673476,193.31,193.15,20.60673476]
[1735524202558,22.40693476,193.31,193.15,20.60673476]
[1735524202757,7.10543657,193.24,193.15,20.60673476]
[1735524202959,7.10543657,193.24,193.23,2.5928]
[1735524203654,7.10543657,193.33,193.22,3.36]
[1735524203858,7.10543657,193.33,193.25,2.5925]
[1735524204560,2.5921,193.29,193.24,2.5927]
[1735524204860,2.5921,193.29,193.22,3.36]
[1735524205559,2.5921,193.29,193.18,3.36]
[1735524206653,20.60673476,193.28,193.14,1.6916]
[1735524206860,20.60673476,193.25,193.11,3.36]
[1735524207055,5.3007,193.24,193.15,2.5938]
[1735524207252,2.593,193.22,193.11,3.36]
[1735524207455,23.19973476,193.22,193.11,3.36]
[1735524207762,23.19973476,193.22,193.15,2.5939]
[1735524208760,2.5931,193.21,193.15,2.5939]
[1735524209058,5.3007,193.24,193.16,3.36]
[1735524209266,3.5586,193.24,193.16,3.36]
[1735524209558,1.7487,193.24,193.16,3.36]
[1735524209857,7.10543657,193.26,193.16,3.36]
[1735524210057,1.6621,193.29,193.17,1.7991]
[1735524211361,1.6621,193.29,193.24,2.5927]
[1735524211759,1.6621,193.29,193.21,3.36]
[1735524211961,30.23014628,193.34,193.21,3.36]
[1735524212262,30.23014628,193.34,193.22,20.60673476]
[1735524212263,28.42174628,193.34,193.22,20.60673476]
[1735524212456,28.42174628,193.34,193.33,2.5915]
[1735524213160,1.6591,193.36,193.35,2.5912]
[1735524213363,1.6591,193.36,193.29,3.36]
[1735524215260,4.2502,193.36,193.29,5.952]
[1735524215463,1.6591,193.36,193.29,3.36]
[1735524215663,1.6591,193.36,193.3,2.5918]
[1735524215967,1.6591,193.36,193.29,3.36]
[1735524216163,1.6591,193.36,193.26,1.6714]
[1735524216554,1.6591,193.36,193.29,2.592]
[1735524217067,1.6591,193.36,193.3,2.5919]
[1735524217261,1.6591,193.36,193.26,1.6714]
[1735524217461,1.6591,193.36,193.34,2.5914]
[1735524217965,1.837,193.39,193.31,3.36]
[1735524218264,28.64871694,193.4,193.31,3.36]
[1735524218662,2.5906,193.4,193.34,2.5912]
[1735524219168,1.7117,193.42,193.31,3.36]
[1735524220863,1.7117,193.42,193.34,2.5914]
[1735524221159,20.60673476,193.36,193.26,3.36]
[1735524221363,20.60673476,193.33,193.24,3.36]
[1735524221567,1.7158,193.32,193.24,3.36]
[1735524221872,1.7158,193.32,193.15,1.8274]
[1735524221873,20.60673476,193.3,193.15,1.8274]
[1735524222061,20.60673476,193.27,193.16,3.36]
[1735524222368,23.96673476,193.3,193.16,3.36]
[1735524223266,2.5922,193.28,193.2,2.5932]
[1735524223569,2.5922,193.28,193.16,3.36]
[1735524223771,23.96673476,193.3,193.14,3.4581]
[1735524224066,23.96673476,193.3,193.21,2.5931]
[1735524224067,2.5923,193.27,193.21,2.5931]
[1735524224468,23.96673476,193.3,193.21,2.5931]
[1735524225270,2.5922,193.28,193.22,2.593]
[1735524225470,23.96673476,193.3,193.15,3.36]
[1735524225673,20.60673476,193.27,193.14,3.4581]
[1735524225873,20.60673476,193.24,193.14,3.4581]
[1735524226171,1.7539,193.23,193.17,2.5937]
[1735524227064,2.593,193.22,193.15,2.5938]
[1735524227268,1.7539,193.23,193.15,2.5938]
[1735524227579,2.5933,193.2,193.15,2.5938]
[1735524227770,2.5933,193.2,193.13,2.5941]
[1735524227972,2.5933,193.2,193.12,3.36]
[1735524228165,20.60673476,193.21,193.12,3.36]
[1735524228373,20.60673476,193.21,193.15,2.5939]
[1735524228574,20.60673476,193.21,193.12,3.36]
[1735524228874,3.4536,193.23,193.12,3.36]
[1735524229880,3.4536,193.23,193.08,3.446]
[1735524229881,20.60673476,193.21,193.08,3.446]
[1735524230076,20.60673476,193.21,193.11,3.36]
[1735524230275,20.60673476,193.21,193.08,3.446]
[1735524230276,20.60673476,193.21,193.12,2.5942]
[1735524230470,20.60673476,193.21,193.08,3.446]
[1735524230671,20.60673476,193.18,193.07,3.36]
[1735524230869,2.5941,193.14,193.05,3.36]
[1735524231276,20.60673476,193.15,193.03,1.7906]
[1735524231578,20.60673476,193.15,193.02,1.7836]
[1735524231579,2.5947,193.1,193.02,2.5956]
[1735524231776,2.5947,193.1,193.01,6.3202879]
[1735524231978,20.60673476,193.12,193.01,6.3202879]
[1735524232273,2.5946,193.1,193.01,2.9602879]
[1735524232779,23.20123476,193.12,193.05,2.5953]
[1735524233080,20.60673476,193.12,193.01,2.9602879]
[1735524233278,2.5946,193.11,193.04,2.5954]
[1735524233674,20.60673476,193.12,193.04,2.5954]
[1735524233974,2.5946,193.1,193.04,2.5954]
[1735524234377,20.60673476,193.12,193.01,2.9602879]
[1735524234673,20.60673476,193.06,192.96,3.36]
[1735524235969,22.34263476,193.06,192.96,3.36]
[1735524236379,2.5957,193.03,192.96,5.9563]
[1735524236575,2.5957,193.03,192.96,3.36]
[1735524237578,2.5957,193.03,192.97,2.5963]
[1735524238074,20.60673476,193.03,192.92,3.36]
[1735524238278,20.60673476,193.0,192.95,2.5966]
[1735524238678,20.60673476,193.0,192.97,2.5963]
[1735524238980,1.7336,193.02,192.92,3.36]
[1735524239182,1.7336,193.02,192.95,2.5966]
[1735524239383,1.7336,193.02,192.92,3.36]
[1735524239885,1.7997,193.04,193.02,2.5956]
[1735524240078,1.7997,193.04,192.92,3.36]
[1735524240274,1.7997,193.04,193.0,2.5958]
[1735524240478,1.7997,193.04,192.92,3.36]
[1735524240879,1.7997,193.04,193.01,2.5957]
[1735524241888,1.7997,193.04,192.99,2.5959]
[1735524242079,1.7997,193.04,192.97,3.36]
[1735524242681,1.7997,193.04,193.01,2.5957]
[1735524242988,22.31713476,193.09,192.97,3.36]
[1735524243379,24.91193476,193.09,192.97,3.36]
[1735524243780,2.5953,193.06,193.0,2.5959]
[1735524243980,22.31713476,193.09,192.97,3.36]
[1735524244582,2.595,193.08,193.0,2.5959]
[1735524244787,2.595,193.08,192.97,3.36]
[1735524245690,20.60673476,193.12,192.97,3.36]
[1735524245885,20.60673476,193.12,192.97,23.96673476]
[1735524246787,24.13083476,193.15,193.09,2.5947]
[1735524246984,24.13083476,193.15,193.05,3.36]
[1735524247187,24.13083476,193.15,193.04,3.36]
[1735524247387,24.13083476,193.15,193.02,3.36]
[1735524248486,2.5943,193.12,193.06,2.5951]
[1735524248693,20.60673476,193.12,192.96,1.8174]
[1735524248887,20.60673476,193.09,192.97,3.36]
[1735524249088,23.20153476,193.09,192.97,3.36]
[1735524250491,23.20153476,193.09,193.03,2.5954]
[1735524251389,20.60673476,193.09,192.97,3.36]
[1735524251993,2.5956,193.03,192.97,2.5962]
[1735524252595,2.5959,193.01,192.95,2.5966]
[1735524253089,2.596,193.0,192.95,2.5966]
[1735524253498,2.596,193.0,192.92,3.36]
[1735524253696,2.5955,193.04,192.99,2.596]
[1735524253997,1.667,193.05,192.92,3.36]
[1735524254497,20.60673476,193.03,192.92,3.36]
[1735524254890,1.667,193.05,192.92,3.36]
[1735524255890,1.667,193.05,192.99,2.596]
[1735524256389,20.60673476,193.03,192.92,3.36]
[1735524256595,2.5959,193.0,192.94,2.5967]
[1735524257498,20.60673476,193.0,192.92,2.5969]
[1735524258500,20.60673476,193.0,192.93,2.5968]
[1735524259197,2.5963,192.97,192.89,6.7539]
[1735524259600,2.5963,192.97,192.92,2.597]
[1735524259795,2.5966,192.96,192.89,3.36]
[1735524259995,1.754,192.96,192.89,3.36]
[1735524260191,1.754,192.96,192.88,2.96198272]
[1735524260394,1.754,192.96,192.85,58.64421903]
[1735524260901,20.60673476,192.94,192.83,3.36]
[1735524261099,3.36,192.93,192.82,3.4093]
[1735524262397,5.957,192.93,192.87,2.5976]
[1735524262599,3.36,192.93,192.82,3.4093]
[1735524264302,2.5974,192.9,192.84,2.5981]
[1735524266201,3.36,192.93,192.84,2.5981]
[1735524266995,20.60673476,192.91,192.82,2.5983]
[1735524267195,20.60673476,192.91,192.8,3.36]
[1735524267499,2.5976,192.88,192.83,2.5981]
[1735524267694,20.60673476,192.91,192.8,3.36]
[1735524267896,20.60673476,192.91,192.81,3.36]
[1735524268194,30.40271694,192.96,192.81,3.36]
[1735524268195,27.76891399,192.94,192.81,3.36]
[1735524268395,7.16217923,192.94,192.82,1.7187]
[1735524268902,7.16217923,192.94,192.89,2.5973]
[1735524269303,1.754,192.96,192.89,2.5973]
[1735524269601,2.5966,192.95,192.89,2.5973]
[1735524270703,2.5966,192.95,192.86,3.36]
[1735524271497,2.5966,192.95,192.89,2.5973]
[1735524271902,2.5966,192.95,192.9,2.5973]
[1735524273000,2.5966,192.95,192.86,3.36]
[1735524273209,2.5966,192.95,192.91,2.5971]
[1735524273415,1.754,192.96,192.86,3.36]
[1735524274209,6.9338,192.99,192.86,3.36]
[1735524274210,3.5738,192.99,192.86,3.36]
[1735524274405,49.2554517,193.0,192.86,3.36]
[1735524274611,28.64871694,193.0,192.86,23.96673476]
[1735524274806,1.7224,193.01,192.98,2.5962]
[1735524275702,4.3182,193.01,192.96,2.5964]
[1735524275904,4.3182,193.01,192.93,3.36]
[1735524275905,1.7224,193.01,192.93,3.36]
[1735524276707,1.7224,193.01,192.95,2.5966]
[1735524276907,1.7224,193.01,192.93,3.36]
[1735524277509,3.36,193.06,192.93,3.36]
[1735524277510,1.6764,193.05,192.93,3.36]
[1735524277702,20.60673476,193.06,192.93,3.36]
[1735524278006,3.5034,193.09,193.04,2.5954]
[1735524278007,24.11013476,193.09,193.04,2.5954]
[1735524278203,24.11013476,193.09,193.01,3.36]
[1735524278204,1.7121,193.09,193.01,3.36]
[1735524278411,1.7121,193.09,193.02,3.36]
[1735524279116,28.62917228,193.08,193.02,3.36]
[1735524279504,28.62917228,193.08,193.04,2.5954]
[1735524280313,20.60673476,193.12,193.06,2.5951]
[1735524281409,23.20103476,193.12,193.06,2.5951]
[1735524281609,1.7499,193.13,192.94,3.557]
[1735524281610,20.60673476,193.09,192.94,3.557]
[1735524281811,20.60673476,193.09,192.95,3.36]
[1735524282208,20.60673476,193.06,192.94,3.557]
[1735524282715,20.60673476,193.03,192.94,3.557]
[1735524283313,20.60673476,193.03,192.99,2.596]
[1735524283814,1.8005,193.05,192.99,2.596]
[1735524284311,1.8005,193.05,192.94,3.557]
[1735524285714,2.596,193.0,192.94,2.5967]
[1735524286116,20.60673476,193.03,192.91,3.36]
[1735524287318,1.8167,193.04,192.87,3.6447]
[1735524287319,20.60673476,193.0,192.87,3.6447]
[1735524287513,20.60673476,192.97,192.87,7.0047]
[1735524287711,1.7908,192.96,192.87,7.0047]
[1735524287912,2.5968,192.94,192.83,1.8016]
[1735524288111,2.5968,192.94,192.84,3.36]
[1735524288313,20.60673476,192.94,192.87,2.5976]
[1735524288511,2.5969,192.93,192.87,2.5976]
[1735524289815,20.60673476,192.94,192.84,3.36]
[1735524289816,20.60673476,192.94,192.88,2.5975]
[1735524290413,23.20353476,192.94,192.88,2.5975]
[1735524290814,20.60673476,192.94,192.86,2.5977]
[1735524291017,20.60673476,192.94,192.81,3.532]
[1735524291218,20.60673476,192.94,192.81,6.892]
[1735524292017,2.5973,192.9,192.84,2.598]
[1735524292518,2.5974,192.89,192.84,2.598]
[1735524293313,2.5976,192.88,192.82,2.5982]
[1735524294318,2.5974,192.9,192.85,2.5979]
[1735524294520,20.60673476,192.91,192.85,2.5979]
[1735524295422,2.5973,192.9,192.85,2.5979]
[1735524297325,20.60673476,192.91,192.79,3.36]
[1735524297620,3.36,192.93,192.79,3.36]
[1735524297920,2.5972,192.91,192.79,3.36]
[1735524298327,2.5972,192.91,192.79,16.294176]
[1735524298528,2.5972,192.91,192.82,2.5983]
[1735524298729,15.531676,192.89,192.76,16.323876]
[1735524298924,15.531676,192.89,192.79,3.36]
[1735524299328,1.8225,192.88,192.79,3.36]
[1735524299930,1.8225,192.88,192.81,2.5984]
[1735524300129,4.4201,192.88,192.79,3.36]
[1735524300327,1.8225,192.88,192.79,3.36]
[1735524301335,1.8225,192.88,192.81,2.5984]
[1735524301540,1.8225,192.88,192.79,3.36]
[1735524301942,2.5978,192.86,192.79,3.36]
[1735524302342,1.8225,192.88,192.79,3.36]
[1735524302543,1.7094,192.95,192.79,16.294176]
[1735524302838,12.934176,192.93,192.79,16.294176]
[1735524303038,15.531076,192.93,192.83,2.5982]
[1735524303245,12.934176,192.93,192.84,3.36]
[1735524303541,12.934176,192.93,192.85,3.36]
[1735524303742,12.934176,192.93,192.86,3.36]
[1735524303946,12.934176,192.93,192.88,2.5975]
[1735524304145,12.934176,192.93,192.81,3.36]
[1735524304342,12.934176,192.9,192.81,3.36]
[1735524305044,12.934176,192.9,192.85,2.5979]
[1735524305538,12.934176,192.9,192.87,2.5976]
[1735524306339,16.294176,192.93,192.81,3.36]
[1735524306647,12.934176,192.93,192.81,3.36]
[1735524306947,12.934176,192.93,192.88,2.5975]
[1735524307144,12.934176,192.93,192.81,3.36]
[1735524307540,2.5972,192.91,192.81,3.36]
[1735524308042,12.934176,192.93,192.81,3.36]
[1735524308640,12.934176,192.93,192.82,12.934176]
[1735524308835,1.7805,192.95,192.82,12.934176]
[1735524309037,1.7805,192.95,192.92,2.597]
[1735524309845,1.7805,192.95,192.87,3.36]
[1735524310047,1.7805,192.95,192.91,2.5971]
[1735524311244,1.7805,192.95,192.87,3.36]
[1735524311447,12.934176,192.99,192.87,3.36]
[1735524312340,12.934176,192.96,192.87,3.36]
[1735524312544,15.530676,192.96,192.9,2.5972]
[1735524312748,12.934176,192.96,192.9,2.5972]
[1735524313547,12.934176,192.96,192.93,2.5967]
[1735524313949,12.934176,192.96,192.86,3.36]
[1735524314151,12.934176,192.99,192.94,2.5967]
[1735524314653,2.5963,192.98,192.86,3.36]
[1735524314850,12.934176,192.99,192.86,3.36]
[1735524315051,12.934176,192.96,192.86,3.36]
[1735524316049,12.934176,192.93,192.89,2.5974]
[1735524316448,12.934176,192.93,192.86,3.36]
[1735524316653,1.7223,192.95,192.91,2.5971]
[1735524316852,1.7223,192.95,192.86,3.36]
[1735524317052,1.7223,192.95,192.91,2.5971]
[1735524317255,1.7223,192.95,192.86,3.36]
[1735524317754,4.319,192.95,192.89,2.5973]
[1735524317949,12.934176,192.93,192.85,3.36]
[1735524318149,12.934176,192.93,192.84,6.8808]
[1735524318349,2.5971,192.92,192.86,2.5977]
[1735524318550,12.934176,192.93,192.84,3.5208]
[1735524319457,15.531076,192.93,192.88,2.5975]
[1735524319654,1.7223,192.95,192.84,3.5208]
[1735524321054,1.7223,192.95,192.85,3.36]
[1735524321261,1.7223,192.95,192.85,16.294176]
[1735524321555,7.15729307,192.98,192.94,2.5966]
[1735524321853,7.15729307,192.98,192.9,3.36]
[1735524322051,7.15729307,192.98,192.91,3.36]
[1735524322248,7.15729307,192.98,192.97,2.5963]
[1735524322459,7.15729307,193.03,192.97,3.36]
[1735524323559,7.15729307,193.03,192.99,2.596]
[1735524323856,12.934176,193.05,192.97,3.36]
[1735524324057,12.934176,193.05,193.0,2.5959]
[1735524324449,12.934176,193.05,192.97,3.36]
[1735524324653,12.934176,193.02,192.97,3.36]
[1735524325047,12.934176,193.02,192.93,3.36]
[1735524325756,12.934176,193.02,192.95,2.5965]
[1735524327459,2.5958,193.01,192.95,2.5965]
[1735524328054,12.934176,193.02,192.92,6.8276]
[1735524328055,15.529876,193.02,192.97,2.5963]
[1735524328460,12.934176,193.02,192.92,3.4676]
[1735524328661,2.5961,192.99,192.94,2.5967]
[1735524332054,12.934176,192.99,192.85,12.934176]
[1735524332364,12.934176,192.96,192.86,3.36]
[1735524332769,2.5968,192.94,192.89,2.5973]
[1735524332962,12.934176,192.93,192.84,3.4355]
[1735524333267,2.5972,192.91,192.86,2.5978]
[1735524333470,12.934176,192.93,192.83,3.36]
[1735524333858,12.934176,192.93,192.79,12.934176]
[1735524334063,12.934176,192.9,192.8,3.36]
[1735524334572,15.531476,192.9,192.84,2.5981]
[1735524335159,12.934176,192.9,192.84,2.5981]
[1735524335358,12.934176,192.9,192.79,12.934176]
[1735524335558,12.934176,192.9,192.82,2.5984]
[1735524335763,1.6858,192.89,192.82,2.5984]
[1735524335962,1.6858,192.89,192.8,3.36]
[1735524335963,12.934176,192.87,192.8,5.9585]
[1735524336164,12.934176,192.87,192.8,3.36]
[1735524336468,12.934176,192.87,192.8,5.9586]
[1735524336775,1.6858,192.89,192.8,3.36]
[1735524337163,1.6858,192.89,192.84,2.598]
[1735524337859,1.6858,192.89,192.8,3.36]
[1735524338068,1.6858,192.89,192.86,2.5978]
[1735524339460,1.6858,192.89,192.85,2.5979]
[1735524340966,4.2832,192.89,192.85,2.5979]
[1735524341365,4.2832,192.89,192.84,2.5981]
[1735524341567,12.934176,192.85,192.63,148.5665052]
[1735524341870,12.934176,192.85,192.71,1.6823]
[1735524342073,2.5981,192.84,192.71,1.6823]
[1735524342469,12.934176,192.85,192.71,1.6823]
[1735524343066,2.5984,192.82,192.75,2.5993]
[1735524343274,15.532576,192.82,192.74,3.36]
[1735524343772,2.5985,192.81,192.76,2.5991]
[1735524343973,12.934176,192.82,192.76,2.5991]
[1735524345468,15.532576,192.82,192.77,2.599]
[1735524347178,15.532576,192.82,192.76,2.5991]
[1735524347474,2.5985,192.81,192.76,2.5991]
[1735524347676,4.2868,192.81,192.76,2.5991]
[1735524350373,12.934176,192.79,192.74,2.5993]
[1735524354471,12.934176,192.79,192.7,3.36]
[1735524354681,3.36,192.8,192.7,16.294176]
[1735524354877,1.6883,192.81,192.7,16.294176]
[1735524355977,1.6883,192.81,192.78,2.5989]
[1735524356180,1.6883,192.81,192.7,12.934176]
[1735524356378,1.6883,192.81,192.71,3.36]
[1735524358383,1.6883,192.81,192.77,2.5989]
[1735524358884,1.6883,192.81,192.71,3.36]
[1735524359084,3.5742,192.84,192.71,3.36]
[1735524359286,3.5742,192.84,192.73,12.934176]
[1735524359480,3.5742,192.84,192.81,2.5984]
[1735524359879,1.8378,192.89,192.76,16.294176]
[1735524360083,1.8378,192.89,192.85,2.5979]
[1735524360084,14.771976,192.89,192.85,2.5979]
[1735524360283,14.771976,192.89,192.77,1.7478]
[1735524360586,14.771976,192.89,192.76,3.36]
[1735524360587,12.934176,192.83,192.76,3.36]
[1735524360983,12.934176,192.83,192.81,2.5985]
[1735524361188,12.934176,192.86,192.76,3.36]
[1735524361782,12.934176,192.86,192.81,2.5984]
[1735524361986,14.771976,192.89,192.77,12.934176]
[1735524362180,14.771976,192.89,192.78,3.36]
[1735524362380,12.934176,192.89,192.78,3.36]
[1735524362584,12.934176,192.92,192.8,12.934176]
[1735524362785,7.15729307,192.93,192.83,12.934176]
[1735524362988,7.15729307,192.93,192.92,2.597]
[1735524363380,70.19252057,192.95,192.84,3.36]
[1735524363381,12.934176,192.95,192.84,3.36]
[1735524363689,12.934176,192.95,192.9,2.5972]
[1735524363987,21.79686907,192.98,192.89,3.36]
[1735524364186,20.09146907,192.98,192.94,2.5967]
[1735524364788,12.934176,192.98,192.94,2.5967]
[1735524365388,12.934176,192.98,192.89,3.36]
[1735524365585,12.934176,192.98,192.95,2.5966]
[1735524365787,12.934176,193.01,192.9,1.686]
[1735524366289,12.934176,193.01,192.95,2.5965]
[1735524366592,12.934176,192.98,192.9,1.686]
[1735524366791,12.934176,192.95,192.87,1.6935]
[1735524366988,12.934176,192.95,192.87,2.5977]
[1735524367287,12.934176,192.92,192.85,3.36]
[1735524368590,1.7328,192.94,192.85,3.36]
[1735524368980,4.3295,192.94,192.87,2.5976]
[1735524369183,4.3295,192.94,192.85,3.36]
[1735524369390,12.934176,192.92,192.84,3.36]
[1735524370300,1.7328,192.94,192.84,3.36]
[1735524371182,1.7328,192.94,192.87,2.5976]
[1735524371183,4.3297,192.94,192.87,2.5976]
[1735524372290,4.3297,192.94,192.88,2.5975]
[1735524373189,2.5969,192.93,192.87,2.5977]
[1735524373495,12.934176,192.89,192.82,5.1043]
[1735524373987,12.934176,192.92,192.82,5.1043]
[1735524374593,12.934176,192.92,192.86,2.5977]
[1735524375395,15.531176,192.92,192.86,2.5977]
[1735524375790,12.934176,192.92,192.82,5.1043]
[1735524375987,12.934176,192.92,192.88,2.5975]
[1735524376791,5.0928,192.94,192.9,2.5973]
[1735524376983,1.7328,192.94,192.83,14.713376]
[1735524379387,1.7328,192.94,192.9,2.5973]
[1735524379793,12.934176,192.95,192.9,2.5973]
[1735524381600,15.530776,192.95,192.89,2.5974]
[1735524381890,12.934176,192.95,192.85,3.36]
[1735524382894,12.934176,192.92,192.87,2.5977]
[1735524383091,12.934176,192.89,192.74,74.58237688]
[1735524383292,12.934176,192.86,192.8,3.36]
[1735524383492,12.934176,192.86,192.75,1.7298]
[1735524383688,12.934176,192.86,192.76,3.36]
[1735524384198,12.934176,192.83,192.76,3.36]
[1735524384400,12.934176,192.86,192.76,3.36]
[1735524386397,12.934176,192.83,192.75,1.7298]
[1735524386600,12.934176,192.83,192.75,5.0898]
[1735524386994,12.934176,192.83,192.78,2.5988]
[1735524387293,12.934176,192.86,192.75,5.0898]
[1735524388102,15.532476,192.83,192.77,2.599]
[1735524388292,12.934176,192.83,192.77,2.599]
[1735524389497,2.5984,192.82,192.77,2.599]
[1735524389693,12.934176,192.83,192.75,3.36]
[1735524390002,12.934176,192.83,192.78,2.5989]
[1735524391003,12.934176,192.86,192.75,3.36]
[1735524392300,12.934176,192.86,192.82,2.5983]
[1735524394406,12.934176,192.86,192.81,2.5985]
[1735524394605,12.934176,192.86,192.75,3.36]
[1735524394800,12.934176,192.86,192.78,2.5989]
[1735524395000,12.934176,192.86,192.75,3.36]
[1735524395201,15.532076,192.86,192.75,3.36]
[1735524395402,12.934176,192.86,192.78,2.5989]
[1735524395704,12.934176,192.83,192.78,2.5989]
[1735524396005,12.934176,192.83,192.75,3.36]
[1735524396503,15.532576,192.83,192.75,3.36]
[1735524396707,15.532576,192.83,192.78,2.5989]
[1735524397096,2.5984,192.82,192.73,1.7614]
[1735524397301,2.5984,192.82,192.73,5.1214]
[1735524397500,2.5984,192.82,192.76,2.5991]
[1735524397807,12.934176,192.8,192.73,5.1214]
[1735524397996,12.934176,192.8,192.74,2.5993]
[1735524398399,15.532876,192.8,192.73,3.36]
[1735524398704,15.532876,192.8,192.75,2.5992]
[1735524400504,12.934176,192.8,192.78,2.5989]
[1735524403005,12.934176,192.8,192.73,3.36]
[1735524403212,12.934176,192.8,192.75,2.5993]
[1735524404398,2.5989,192.79,192.75,2.5993]
[1735524406003,12.934176,192.8,192.68,1.7461]
[1735524406308,1.8227,192.79,192.7,3.36]
[1735524406506,1.8227,192.79,192.68,1.7461]
[1735524406507,15.533176,192.77,192.73,2.5995]
[1735524406708,15.533176,192.77,192.73,2.55213076]
[1735524408212,12.934176,192.77,192.69,3.36]
[1735524408801,2.5994,192.74,192.69,2.6]
[1735524409108,12.934176,192.74,192.69,2.6]
[1735524409307,15.533676,192.74,192.69,2.6]
[1735524409505,15.533676,192.74,192.65,62.06810366]
[1735524409506,12.934176,192.77,192.65,62.06810366]
[1735524409909,15.533376,192.77,192.72,2.5996]
[1735524410202,12.934176,192.77,192.72,2.5996]
[1735524410707,2.5992,192.76,192.72,2.5996]
[1735524413911,12.934176,192.74,192.65,3.36]
[1735524414105,15.533676,192.74,192.65,3.36]
[1735524415217,2.5997,192.72,192.65,3.36]
[1735524415409,12.934176,192.74,192.65,3.36]
[1735524415615,12.934176,192.74,192.69,2.6001]
[1735524416417,2.5996,192.73,192.69,2.6001]
[1735524416718,12.934176,192.74,192.65,3.36]
[1735524417016,2.5999,192.71,192.65,3.36]
[1735524417318,12.934176,192.71,192.62,6.928]
[1735524417526,2.6001,192.69,192.62,6.928]
[1735524418022,15.534476,192.68,192.63,2.6009]
[1735524418220,15.534476,192.68,192.55,14.627776]
[1735524418221,12.934176,192.68,192.56,1.7609]
[1735524418422,12.934176,192.68,192.57,3.36]
[1735524419221,2.6008,192.65,192.59,2.6015]
[1735524420221,1.812,192.67,192.57,3.36]